Workbook

Sheet PLANILHA SINTÉTICA
C1: CLIENTE: | D1: TRIBUNAL DE JUSTIÇA DE PERNAMBUCO | Q1: Nº CONTRATO: | R1: 067/2022
D2: DIRETORIA DE ENGENHARIA E ARQUITETURA | Q2: VALOR DO CONTRATO: | R2: 3474872.68
D3: GERÊNCIA DE FISCALIZAÇÃO DE ENGENHARIA | Q3: O.S nº: | R3: 067/2022
C4: OBJETO: | D4: CONSTRUÇÃO DO FÓRUM DA COMARCA DE TIUNFO | Q4: Início da Obra:
C5: TÍTULO: | D5: PLANILHA DE MEDIÇÃO - CONTRATO PRINCIPAL
A6: ITEM | B6: COMPOSIÇÃO | C6: EFISCO | D6: DISCRIMINAÇÃO / ESPECIFICAÇÃO DOS SERVIÇOS | E6: UND | F6: QUANT | G6: QUANT. ACUM. | H6: QUANT. RESIDUAL | I6: BDI MAT | J6: 0.1703 | K6: BDI MO | L6: 0.2344 | M6: BDI EQUIP | N6: 0.1272 | O6: VALOR UNITÁRIO SERVIÇO | Q6: VALOR TOTAL SERVIÇO
I7: C.UNIT | J7: P.UNIT. | K7: C.UNIT | L7: P.UNIT. | M7: C.UNIT | N7: P.UNIT. | O7: C.UNIT | P7: P.UNIT. | Q7: C.TOTAL | R7: P.TOTAL
I8: (sem BDI) | J8: (com BDI) | K8: (sem BDI) | L8: (com BDI) | M8: (sem BDI) | N8: (com BDI) | O8: (sem BDI) | P8: (com BDI) | Q8: (sem BDI) | R8: (com BDI)
A9: 1 | D9: PROJETOS E ART´S | G9: 0 | H9: 0
A10: 1.1 | B10: Tabela CREA/PE 01 | C10: 226370-0 | D10: ART Execução de Obra | E10: und | F10: 1 | G10: 1 | H10: 0 | I10: 0 | J10: 0 | K10: 233.94 | L10: 288.78 | M10: 0 | N10: 0 | O10: 233.94 | P10: 288.78 | Q10: 233.94 | R10: =P10*G10 -> 288.78
A11: 1.2 | B11: Tabela CREA/PE 02 | C11: 226370-0 | D11: ART dos Responsáveis técnicos | E11: und | F11: 2 | G11: 2 | H11: 0 | I11: 0 | J11: 0 | K11: 88.78 | L11: 109.59 | M11: 0 | N11: 0 | O11: 88.78 | P11: 109.59 | Q11: 177.56 | R11: =P11*G11 -> 219.18
A12: 1.3 | B12: DEA 1.47 | C12: 507876-8 | D12: Elaboração do PGRCC - Plano de Gerenciamento de Resíduos da Construção Civil | E12: und | F12: 1 | G12: 1 | H12: 0 | I12: 0 | J12: 0 | K12: 1700 | L12: 2098.48 | M12: 0 | N12: 0 | O12: 1700 | P12: 2098.48 | Q12: 1700 | R12: 2098.48
A13: 1.4 | B13: DEA 1.13 | C13: 411552-0 | D13: Controle Tecnológico do Concreto com ensaio de compressão de corpos de prova cilíndricos (NBR 5739)/2007, com transporte para o laboratório realizado pelo cliente. | E13: und | F13: 167 | G13: 167 | H13: 0 | I13: 0 | J13: 0 | K13: 15.08 | L13: 18.61 | M13: 0 | N13: 0 | O13: 15.08 | P13: 18.61 | Q13: 2518.36 | R13: 3107.87
A14: 2 | D14: ADMINISTRAÇÃO DA OBRA / MAQUINAS E EQUIPAMENTOS | G14: 0 | H14: 0 | I14: 0 | J14: 0 | K14: 0 | L14: 0 | M14: 0 | N14: 0 | O14: 0 | P14: 0 | Q14: 0 | R14: 0
A15: 2.1 | B15: ANEXO D | C15: 401010-8 | D15: Administração local pelo período da Obra. | E15: un/mês | F15: 6 | G15: 5.85 | H15: 0.15 | I15: 4023 | J15: 4708.12 | K15: 39150.18 | L15: 48326.98 | M15: 0 | N15: 0 | O15: 43173.18 | P15: 53035.1 | Q15: 259039.08 | R15: 310255.335
A16: 2.2 | B16: DEA 1.134 | C16: 411686-0 | D16: Locação de andaime metálico tubular tipo torre incluindo plataforma metálica, guarda corpo metálico, escada, inclusive montagem e desmontagem. | E16: mxmês | F16: 96 | G16: 96 | H16: 0 | I16: 3.6 | J16: 4.21 | K16: 26.5 | L16: 32.71 | M16: 0 | N16: 0 | O16: 30.1 | P16: 36.92 | Q16: 2889.6 | R16: 3544.32
A17: 2.3 | B17: DEA 1.91 | C17: 424313-7 | D17: Locação de andaime do tipo fachadeiro compostos de quadros verticais com, plataformas contraventamento diagonais, barra de ligação, escadas de acesso, piso metálico, base ajustável e travamento em tubo e demais acessórios necessários, inclusive carregamento, descarregamento. | E17: m²xmês | F17: 2743.85175 | G17: 2743.85 | H17: 0.00175 | I17: 0.81 | J17: 0.95 | K17: 4.5 | L17: 5.55 | M17: 0 | N17: 0 | O17: 5.31 | P17: 6.5 | Q17: 14569.85 | R17: 17835.025
A18: 2.4 | B18: DEA 97063 | C18: 481255-7 | D18: Montagem e desmontagem de andaime modular fachadeiro, com piso metálico, para edificações com múltiplos pavimentos (exclusive andaime e limpeza). | E18: m² | F18: 1097.5407 | G18: 1097.54 | H18: 0.0007000000001 | I18: 1.36 | J18: 1.59 | K18: 6.4 | L18: 7.9 | M18: 0 | N18: 0 | O18: 7.76 | P18: 9.49 | Q18: 8516.92 | R18: 10415.6546
A19: 2.5 | B19: DEA 1.148 | C19: 366934-3 | D19: Frete, carrego e descarrego para mobilização das formas cubetas da laje nervurada (Recife-TRIUNFO) | E19: und | F19: 1 | G19: 1 | H19: 0 | I19: 170.28 | J19: 199.28 | K19: 2253.24 | L19: 2781.4 | M19: 0 | N19: 0 | O19: 2423.52 | P19: 2980.68 | Q19: 2423.52 | R19: 2980.68
A20: 2.6 | B20: DEA 1.149 | C20: 469419-9 | D20: Frete, carrego e descarrego para desmobilização das formas cubetas da laje nervurada (TRIUNFO-Recife) | E20: und | F20: 1 | G20: 1 | H20: 0 | I20: 170.28 | J20: 199.28 | K20: 2253.24 | L20: 2781.4 | M20: 0 | N20: 0 | O20: 2423.52 | P20: 2980.68 | Q20: 2423.52 | R20: 2980.68
A21: 3 | D21: SERVIÇOS PRELIMINARES | G21: 0 | H21: 0 | I21: 0 | J21: 0 | K21: 0 | L21: 0 | M21: 0 | N21: 0 | O21: 0 | P21: 0 | Q21: 0 | R21: 0
A22: 3.1 | B22: DEA 1.01 A | C22: 314578-6 | D22: Mobilização da obra (pessoal, máquinas e equipamentos). | E22: und | F22: 1 | G22: 1 | H22: 0 | I22: 718.54 | J22: 840.91 | K22: 841.12 | L22: 1038.28 | M22: 0 | N22: 0 | O22: 1559.66 | P22: 1879.19 | Q22: 1559.66 | R22: 1879.19
A23: 3.2 | B23: DEA 98525 | D23: Limpeza mecanizada de camada vegetal, vegetação e pequenas árvores (diâmetro de tronco menor que 0,20 m), com trator de esteiras. | E23: m² | F23: 1265 | G23: 0 | H23: 1265 | I23: 0.06 | J23: 0.07 | K23: 0.28 | L23: 0.35 | M23: 0 | N23: 0 | O23: 0.34 | P23: 0.42 | Q23: 430.1 | R23: 0
A24: 3.3 | B24: DEA 1.54 | C24: 435241-6 | D24: Remoção de metralha em caminhão basculante D.M.T. 6 Km, inclusive carga e descarga mecânica. | E24: m³ | F24: 164.45 | G24: 68.0316 | H24: 96.4184 | I24: 6.45 | J24: 7.55 | K24: 7.09 | L24: 8.75 | M24: 0 | N24: 0 | O24: 13.54 | P24: 16.3 | Q24: 2226.65 | R24: 1108.91508
A25: 3.4 | B25: DEA 99059 | C25: 498013-1 | D25: Locação convencional de obra, utilizando gabarito de tábuas corridas pontaletadas a cada 2,00m - 2 utilizações. | E25: m | F25: 50 | G25: 50 | H25: 0 | I25: 26.6 | J25: 31.13 | K25: 20.03 | L25: 24.73 | M25: 0 | N25: 0 | O25: 46.63 | P25: 55.86 | Q25: 2331.5 | R25: 2793
A26: 3.5 | B26: DEA 02.01.200 | C26: 435096-0 | D26: Serviço topográfico de pequeno porte (preço mínimo), diária de uma equipe com topógrafo, quatro auxiliares, teodolito, nível ótico etc. | E26: und | F26: 2 | G26: 0 | H26: 2 | I26: 0 | J26: 0 | K26: 1360.27 | L26: 1679.12 | M26: 0 | N26: 0 | O26: 1360.27 | P26: 1679.12 | Q26: 2720.54 | R26: 0
A27: 4 | D27: CANTEIRO DE OBRA | G27: 0 | H27: 0 | I27: 0 | J27: 0 | K27: 0 | L27: 0 | M27: 0 | N27: 0 | O27: 0 | P27: 0 | Q27: 0 | R27: 0
A28: 4.1 | B28: DEA 1.158 | C28: 501875-7 | D28: Placa de obra em lona plástica impressão digital alta resolução com acabamento em ilhós, fixação em abraçadeiras de nylon, estrutura em ferro galvanizado. | E28: m² | F28: 3 | G28: 3 | H28: 0 | I28: 215.87 | J28: 252.63 | K28: 161.8 | L28: 199.73 | M28: 0 | N28: 0 | O28: 377.67 | P28: 452.36 | Q28: 1133.01 | R28: 1357.08
A29: 4.2 | B29: DEA 98458 | C29: 368274-9 | D29: Tapume com compensado de madeira. | E29: m² | F29: 110 | G29: 110 | H29: 0 | I29: 73.46 | J29: 85.97 | K29: 10.16 | L29: 12.54 | M29: 0 | N29: 0 | O29: 83.62 | P29: 98.51 | Q29: 9198.2 | R29: 10836.1
A30: 4.3 | B30: DEA 1.31 | C30: 471536-5 | D30: Fornecimento e execução de barracão aberto para apoio à produção (carpintaria, central de armação, oficina, etc) com tesouras, telha 4mm, piso em concreto desempolado. | E30: m² | F30: 20 | G30: 20 | H30: 0 | I30: 77.43 | J30: 90.62 | K30: 41.8 | L30: 51.6 | M30: 0 | N30: 0 | O30: 119.23 | P30: 142.22 | Q30: 2384.6 | R30: 2844.4
A31: 4.4 | B31: DEA CANTEIRO-ESCRITÓRIO | C31: 478488-0 | D31: Construção de escritório em canteiro de obra em alvenaria, não incluso mobiliário e equipamentos. | E31: m² | F31: 23.54 | G31: 23.5394 | H31: 0.0006 | I31: 746.11 | J31: 873.17 | K31: 293.65 | L31: 362.48 | M31: 0 | N31: 0 | O31: 1039.76 | P31: 1235.65 | Q31: 24475.95 | R31: 29086.45961
A32: 4.5 | B32: DEA CAN-ALMOXARIFADO | C32: 478487-1 | D32: Construção de almoxarifado em canteiro de obra em alvenaria, incluso prateleiras. | E32: m² | F32: 5.28 | G32: 0 | H32: 5.28 | I32: 596.56 | J32: 698.15 | K32: 228.08 | L32: 281.54 | M32: 0 | N32: 0 | O32: 824.64 | P32: 979.69 | Q32: 4354.1 | R32: 0
A33: 4.6 | B33: DEA CAN-REFEITÓRIO | C33: 478484-7 | D33: Construção de refeitório em canteiro de obra em alvenaria, não incluso mobiliário e equipamentos. | E33: m² | F33: 28.23 | G33: 28.224 | H33: 0.006 | I33: 413.02 | J33: 483.36 | K33: 119.54 | L33: 147.56 | M33: 0 | N33: 0 | O33: 532.56 | P33: 630.92 | Q33: 15034.17 | R33: 17807.08608
A34: 4.7 | B34: DEA CAN-SANITÁRIO E VESTIÁRIO | C34: 473921-3 | D34: Execução de sanitário e vestiário em canteiro de obra em alvenaria, não incluso mobiliário. | E34: m² | F34: 17.64 | G34: 17.64 | H34: 0 | I34: 644.16 | J34: 753.86 | K34: 246.58 | L34: 304.38 | M34: 0 | N34: 0 | O34: 890.74 | P34: 1058.24 | Q34: 15712.65 | R34: 18667.3536
A35: 4.8 | B35: DEA 97625 | C35: 563808-9 | D35: Demolição de alvenaria para qualquer tipo de bloco, de forma mecanizada, sem reaproveitamento. | E35: m³ | F35: 6.97 | G35: 6.97 | H35: 0 | I35: 17.05 | J35: 19.95 | K35: 32.3 | L35: 39.87 | M35: 0 | N35: 0 | O35: 49.35 | P35: 59.82 | Q35: 343.97 | R35: 416.9454
A36: 4.9 | B36: DEA 1.54 | C36: 435241-6 | D36: Remoção de metralha em caminhão basculante D.M.T. 6 Km, inclusive carga e descarga mecânica. | E36: m³ | F36: 9.06 | G36: 9.06 | H36: 0 | I36: 6.45 | J36: 7.55 | K36: 7.09 | L36: 8.75 | M36: 0 | N36: 0 | O36: 13.54 | P36: 16.3 | Q36: 122.67 | R36: 147.678
A37: 4.10 | B37: DEA 1.147 | D37: Taxa de descarte resíduos | E37: ton | F37: 13.59 | G37: 0 | H37: 13.59 | I37: 0 | J37: 0 | K37: 28 | L37: 34.56 | M37: 0 | N37: 0 | O37: 28 | P37: 34.56 | Q37: 380.52 | R37: 0
A38: 4.11 | B38: DEA 21.52 | C38: 480073-7 | D38: Fornecimento e instalação de sumidouro pré-moldado de concreto - 03 anéis h=0,50m cada, inclusive escavação. | E38: und | F38: 1 | G38: 0 | H38: 1 | I38: 659.31 | J38: 771.59 | K38: 76.72 | L38: 94.7 | M38: 0 | N38: 0 | O38: 736.03 | P38: 866.29 | Q38: 736.03 | R38: 0
A39: 4.12 | B39: DEA 1.5 | C39: 368274-9 | D39: Ligação provisória de luz e força para obra. | E39: un | F39: 1 | G39: 1 | H39: 0 | I39: 2378.88 | J39: 2784 | K39: 272.97 | L39: 336.95 | M39: 0 | N39: 0 | O39: 2651.85 | P39: 3120.95 | Q39: 2651.85 | R39: 3120.95
A40: 4.13 | B40: DEA 1.100 | C40: 401750-1 | D40: Ligações provisórias de água e esgoto. | E40: un | F40: 1 | G40: 1 | H40: 0 | I40: 593.14 | J40: 694.15 | K40: 105.54 | L40: 130.28 | M40: 0 | N40: 0 | O40: 698.68 | P40: 824.43 | Q40: 698.68 | R40: 824.43
A41: 4.14 | B41: DEA 03.03.045 | C41: 435141-0 | D41: Fornecimento e montagem de tela de sinalização laranja (H=1,2m) fixada em montantes de ferro de 1/2 Pol. Ou em barrotes de madeira 3x3 Pol. Colocados sobre base de concreto traço 1:4:8, espaçados a cada 2 m, inclusive posterior retirada e reaproveitamento. | E41: m | F41: 194.619 | G41: 120.31 | H41: 74.309 | I41: 11.12 | J41: 13.01 | K41: 4.77 | L41: 5.89 | M41: 0 | N41: 0 | O41: 15.89 | P41: 18.9 | Q41: 3092.5 | R41: 2273.859
A42: 5 | D42: INFRAESTRUTURA - FUNDAÇÃO | G42: 0 | H42: 0 | I42: 0 | J42: 0 | K42: 0 | L42: 0 | M42: 0 | N42: 0 | O42: 0 | P42: 0 | Q42: 0 | R42: 0
A43: 5.1 | D43: SAPATAS | G43: 0 | H43: 0 | I43: 0 | J43: 0 | K43: 0 | L43: 0 | M43: 0 | N43: 0 | O43: 0 | P43: 0 | Q43: 0 | R43: 0
A44: 5.1.1 | B44: DEA 96521 | C44: 500556-6 | D44: Escavação mecanizada para bloco de coroamento ou sapata, com previsão de fôrma, com retroescavadeira. | E44: m³ | F44: 331.7433 | G44: 309.1565 | H44: 22.5868 | I44: 12.03 | J44: 14.08 | K44: 26.18 | L44: 32.32 | M44: 0 | N44: 0 | O44: 38.21 | P44: 46.4 | Q44: 12675.91 | R44: 14344.8616
A45: 5.1.2 | B45: DEA 94962 | C45: 440366-5 | D45: Concreto magro para lastro, traço 1:4, 5:4, 5 (cimento/ areia média/ brita 1) - preparo mecânico com betoneira 400 L. | E45: m³ | F45: 4.3115 | G45: 4.3115 | H45: 0 | I45: 247.58 | J45: 289.74 | K45: 65.28 | L45: 80.58 | M45: 0 | N45: 0 | O45: 312.86 | P45: 370.32 | Q45: 1348.9 | R45: 1596.63468
A46: 5.1.3 | B46: DEA 96541 | C46: 502737-3 | D46: Fabricação, montagem e desmontagem de fôrma para sapata, em chapa de madeira compensada resinada, e=17 mm, 4 utilizações. | E46: m² | F46: 44.05 | G46: 44.05 | H46: 0 | I46: 90.76 | J46: 106.22 | K46: 88.34 | L46: 109.05 | M46: 0 | N46: 0 | O46: 179.1 | P46: 215.27 | Q46: 7889.36 | R46: 9482.6435
A47: 5.1.4 | B47: DEA 96558.1 | C47: 505223-8 | D47: Concretagem de sapatas, fck 35 mpa com adição de metacaulim, e uso de bomba lançamento, adensamento e acabamento. | E47: m³ | F47: 31.85 | G47: 31.27371667 | H47: 0.5762833333 | I47: 799.83 | J47: 936.04 | K47: 17.84 | L47: 22.02 | M47: 0 | N47: 0 | O47: 817.67 | P47: 958.06 | Q47: 26042.79 | R47: 29962.09699
A48: 5.1.5 | B48: DEA 96995 | C48: 435286-6 | D48: Reaterro manual apiloado com soquete. | E48: m³ | F48: 239.91464 | G48: 239.91 | H48: 0.00464 | I48: 11.35 | J48: 13.28 | K48: 30.2 | L48: 37.28 | M48: 0 | N48: 0 | O48: 41.55 | P48: 50.56 | Q48: 9968.45 | R48: 12129.8496
A49: 5.1.6 | B49: DEA 05.02.060 | C49: 435290-4 | D49: Execução de aterro abrangendo espalhamento, homogeneização, umedecimento e compactação mecânica em camadas de 20cm de espessura, inclusive o fornecimento do barro proveniente de jazida a uma distância máxima de 12 KM. | E49: m³ | F49: 44.983995 | G49: 44.98 | H49: 0.003995 | I49: 38.27 | J49: 44.79 | K49: 15.28 | L49: 18.86 | M49: 0 | N49: 0 | O49: 53.55 | P49: 63.65 | Q49: 2408.89 | R49: 2862.977
A50: 5.1.7 | B50: DEA 100205 | D50: Transporte horizontal com jerica de 60 l, de massa/ granel (unidade: m3xkm). | E50: M3XKM | F50: 1.99768387 | G50: 0.65667 | H50: 1.34101387 | I50: 323.08 | J50: 378.1 | K50: 859.98 | L50: 1061.56 | M50: 0 | N50: 0 | O50: 1183.06 | P50: 1439.66 | Q50: 2363.38 | R50: 945.3815322
A51: 5.1.8 | B51: DEA 1.54 | C51: 435241-6 | D51: Remoção de metralha em caminhão basculante D.M.T. 6 Km, inclusive carga e descarga mecânica. | E51: m³ | F51: 99.8841935 | G51: 0 | H51: 99.8841935 | I51: 6.45 | J51: 7.55 | K51: 7.09 | L51: 8.75 | M51: 0 | N51: 0 | O51: 13.54 | P51: 16.3 | Q51: 1352.43 | R51: 0
A52: 5.2 | D52: CINTAS | G52: 0 | H52: 0 | I52: 0 | J52: 0 | K52: 0 | L52: 0 | M52: 0 | N52: 0 | O52: 0 | P52: 0 | Q52: 0 | R52: 0
A53: 5.2.1 | B53: DEA 96542 | C53: 488361-6 | D53: Fabricação, montagem e desmontagem de fôrma para viga baldrame, em chapa de madeira compensada resinada, e=17 mm, 4 utilizações. | E53: m² | F53: 207.56 | G53: 183.155 | H53: 24.405 | I53: 34.48 | J53: 40.35 | K53: 25.69 | L53: 31.71 | M53: 0 | N53: 0 | O53: 60.17 | P53: 72.06 | Q53: 12488.89 | R53: 13198.1493
A54: 5.2.2 | B54: DEA 96557.1 | C54: 505254-8 | D54: Concretagem de blocos de coroamento e vigas baldrames, fck 35 mpa com adição de metacaulim, com uso de bomba  lançamento, adensamento e acabamento. | E54: m³ | F54: 13.61 | G54: 13.56213 | H54: 0.04787 | I54: 798.26 | J54: 934.2 | K54: 13.13 | L54: 16.21 | M54: 0 | N54: 0 | O54: 811.39 | P54: 950.41 | Q54: 11043.02 | R54: 12889.58397
A55: 5.3 | D55: ARMAÇÃO (SAPATAS,CINTAS) | G55: 0 | H55: 0 | I55: 0 | J55: 0 | K55: 0 | L55: 0 | M55: 0 | N55: 0 | O55: 0 | P55: 0 | Q55: 0 | R55: 0
A56: 5.3.1 | B56: DEA 96543 | C56: 482893-3 | D56: Armação de bloco, viga baldrame e sapata utilizando aço ca-60 de 5 mm - montagem. | E56: kg | F56: 267.759 | G56: 267.7528 | H56: 0.0062 | I56: 12.53 | J56: 14.66 | K56: 5.41 | L56: 6.68 | M56: 0 | N56: 0 | O56: 17.94 | P56: 21.34 | Q56: 4803.6 | R56: 5713.844752
A57: 5.3.2 | B57: DEA 96544 | C57: 482894-1 | D57: Armação de bloco, viga baldrame ou sapata utilizando aço ca-50 de 6,3 mm - montagem. | E57: kg | F57: 120 | G57: 105.499746 | H57: 14.500254 | I57: 13.08 | J57: 15.31 | K57: 3.87 | L57: 4.78 | M57: 0 | N57: 0 | O57: 16.95 | P57: 20.09 | Q57: 2034 | R57: 2119.489897
A58: 5.3.3 | B58: DEA 96545 | C58: 488085-4 | D58: Armação de bloco, viga baldrame ou sapata utilizando aço ca-50 de 8 mm - montagem. | E58: kg | F58: 400 | G58: 400 | H58: 0 | I58: 13.18 | J58: 15.42 | K58: 2.77 | L58: 3.42 | M58: 0 | N58: 0 | O58: 15.95 | P58: 18.84 | Q58: 6380 | R58: 7536
A59: 5.3.4 | B59: DEA 96546 | C59: 488074-9 | D59: Armação de bloco, viga baldrame ou sapata utilizando aço ca-50 de 10 mm - montagem. | E59: kg | F59: 500 | G59: 500 | H59: 0 | I59: 12.22 | J59: 14.3 | K59: 2.04 | L59: 2.52 | M59: 0 | N59: 0 | O59: 14.26 | P59: 16.82 | Q59: 7130 | R59: 8410
A60: 5.3.5 | B60: DEA 96547 | C60: 495591-9 | D60: Armação de bloco, viga baldrame ou sapata utilizando aço ca-50 de 12,5 mm - montagem. | E60: kg | F60: 350 | G60: 324.246112 | H60: 25.753888 | I60: 10.56 | J60: 12.36 | K60: 1.52 | L60: 1.88 | M60: 0 | N60: 0 | O60: 12.08 | P60: 14.24 | Q60: 4228 | R60: 4617.264635
A61: 5.3.6 | B61: DEA 96548 | C61: 488194-0 | D61: Armação de bloco, viga baldrame ou sapata utilizando aço ca-50 de 16 mm - montagem. | E61: kg | F61: 350 | G61: 333.314586 | H61: 16.685414 | I61: 10.42 | J61: 12.19 | K61: 1.08 | L61: 1.33 | M61: 0 | N61: 0 | O61: 11.5 | P61: 13.52 | Q61: 4025 | R61: 4506.413203
A62: 5.3.7 | B62: DEA 96549 | C62: 489270-4 | D62: Armação de bloco, viga baldrame ou sapata utilizando aço ca-50 de 20 mm - montagem. | E62: kg | F62: 350 | G62: 350 | H62: 0 | I62: 12.06 | J62: 14.11 | K62: 0.78 | L62: 0.96 | M62: 0 | N62: 0 | O62: 12.84 | P62: 15.07 | Q62: 4494 | R62: 5274.5
A63: 5.3.8 | B63: DEA 96550 | D63: Armação de bloco, viga baldrame ou sapata utilizando aço ca-50 de 25 mm - montagem. | E63: kg | F63: 80 | G63: 0 | H63: 80 | I63: 12 | J63: 14.04 | K63: 0.54 | L63: 0.67 | M63: 0 | N63: 0 | O63: 12.54 | P63: 14.71 | Q63: 1003.2 | R63: 0
A64: 5.4 | D64: PESCOÇO DO PILAR | G64: 0 | H64: 0 | I64: 0 | J64: 0 | K64: 0 | L64: 0 | M64: 0 | N64: 0 | O64: 0 | P64: 0 | Q64: 0 | R64: 0
A65: 5.4.1 | B65: DEA 92419 | C65: 469865-7 | D65: Montagem e desmontagem de fôrma de pilares retangulares e estruturas similares, pé-direito simples, em chapa de madeira compensada resinada, 4 utilizações. | E65: m² | F65: 64 | G65: 45.028 | H65: 18.972 | I65: 43.86 | J65: 51.33 | K65: 31.98 | L65: 39.48 | M65: 0 | N65: 0 | O65: 75.84 | P65: 90.81 | Q65: 4853.76 | R65: 4088.99268
A66: 5.4.2 | B66: DEA 92720.2 | C66: 505287-4 | D66: Concretagem de pilares, fck = 35 mpa com adição de metacaulim e uso de bomba em edificação com seção média de pilares menor ou igual a 0,25 m² - lançamento, adensamento e acabamento. | E66: m³ | F66: 4.07 | G66: 2.8067 | H66: 1.2633 | I66: 783.41 | J66: 916.82 | K66: 21.86 | L66: 26.98 | M66: 0 | N66: 0 | O66: 805.27 | P66: 943.8 | Q66: 3277.45 | R66: 2648.96346
A67: 5.5 | D67: LAJE DE PISO (POÇO DO ELEVADOR) | G67: 0 | H67: 0 | I67: 0 | J67: 0 | K67: 0 | L67: 0 | M67: 0 | N67: 0 | O67: 0 | P67: 0 | Q67: 0 | R67: 0
A68: 5.5.1 | B68: DEA 94962 | C68: 440366-5 | D68: Concreto magro para lastro, traço 1:4, 5:4, 5 (cimento/ areia média/ brita 1) - preparo mecânico com betoneira 400 L. | E68: m³ | F68: 0.2184 | G68: 0.218 | H68: 0.0004 | I68: 247.58 | J68: 289.74 | K68: 65.28 | L68: 80.58 | M68: 0 | N68: 0 | O68: 312.86 | P68: 370.32 | Q68: 68.33 | R68: 80.72976
A69: 5.5.2 | B69: DEA 85662.1 | C69: 430078-5 | D69: Armacao em tela de aco soldada nervurada q-61, aco ca-60, 3,4mm, malha 15x15cm | E69: m² | F69: 4.368 | G69: 0 | H69: 4.368 | I69: 11.89 | J69: 13.91 | K69: 1.26 | L69: 1.56 | M69: 0 | N69: 0 | O69: 13.15 | P69: 15.47 | Q69: 57.44 | R69: 0
A70: 5.5.3 | B70: DEA 97095 A | C70: 563824-0 | D70: Concretagem de radier, piso ou laje sobre solo, fck 35 mpa, para espessura de 15 cm - lançamento, adensamento e acabamento. | E70: m³ | F70: 0.6552 | G70: 0.6552 | H70: 0 | I70: 425.03 | J70: 497.41 | K70: 12.17 | L70: 15.02 | M70: 0 | N70: 0 | O70: 437.2 | P70: 512.43 | Q70: 286.45 | R70: 335.744136
A71: 5.6 | D71: ALVENARIA DE FUNDAÇÃO | G71: 0 | H71: 0 | I71: 0 | J71: 0 | K71: 0 | L71: 0 | M71: 0 | N71: 0 | O71: 0 | P71: 0 | Q71: 0 | R71: 0
A72: 5.6.1 | B72: DEA 94962 | C72: 440366-5 | D72: Concreto magro para lastro, traço 1:4, 5:4, 5 (cimento/ areia média/ brita 1) - preparo mecânico com betoneira 400 L. | E72: m³ | F72: 0.84987 | G72: 0.8484 | H72: 0.00147 | I72: 247.58 | J72: 289.74 | K72: 65.28 | L72: 80.58 | M72: 0 | N72: 0 | O72: 312.86 | P72: 370.32 | Q72: 265.89 | R72: 314.179488
A73: 5.6.2 | B73: DEA 07.01.185 | C73: 435446-0 | D73: Alvenaria de tijolos de 8 furos, assentados e rejuntados com argamassa de cimento e areia no traço 1:6 - 1 vez. | E73: m² | F73: 44.73 | G73: 44.73 | H73: 0 | I73: 47.83 | J73: 55.98 | K73: 35.2 | L73: 43.45 | M73: 0 | N73: 0 | O73: 83.03 | P73: 99.43 | Q73: 3713.93 | R73: 4447.5039
A74: 5.6.3 | B74: DEA 87879.01 | C74: 432304-1 | D74: Chapisco aplicado em alvenarias e estruturas de concreto, com colher de pedreiro. argamassa traço 1:3 com preparo em betoneira 400l. | E74: m² | F74: 89.46 | G74: 89.46 | H74: 0 | I74: 1.84 | J74: 2.15 | K74: 1.69 | L74: 2.09 | M74: 0 | N74: 0 | O74: 3.53 | P74: 4.24 | Q74: 315.79 | R74: 379.3104
A75: 5.6.4 | B75: DEA 05.02.060 | C75: 435290-4 | D75: Execução de aterro abrangendo espalhamento, homogeneização, umedecimento e compactação mecânica em camadas de 20cm de espessura, inclusive o fornecimento do barro proveniente de jazida a uma distância máxima de 12 KM. | E75: m³ | F75: 350 | G75: 327.76 | H75: 22.24 | I75: 38.27 | J75: 44.79 | K75: 15.28 | L75: 18.86 | M75: 0 | N75: 0 | O75: 53.55 | P75: 63.65 | Q75: 18742.5 | R75: =P75*G75 -> 20861.924
A76: 5.7 | D76: RESERVATÓRIO INFERIOR | G76: 0 | H76: 0 | I76: 0 | J76: 0 | K76: 0 | L76: 0 | M76: 0 | N76: 0 | O76: 0 | P76: 0 | Q76: 0 | R76: 0
A77: 5.7.1 | B77: DEA 1.51 | C77: 440610-9 | D77: Escavação mecânica valas em qualquer tipo de solo exceto rocha, prof. 0<h<4m. | E77: m³ | F77: 89.505 | G77: 15.552 | H77: 73.953 | I77: 6.1 | J77: 7.14 | K77: 16.68 | L77: 20.59 | M77: 0 | N77: 0 | O77: 22.78 | P77: 27.73 | Q77: 2038.92 | R77: 431.25696
A78: 5.7.2 | B78: DEA 94962 | C78: 440366-5 | D78: Concreto magro para lastro, traço 1:4, 5:4, 5 (cimento/ areia média/ brita 1) - preparo mecânico com betoneira 400 L. | E78: m³ | F78: 1.40875 | G78: 0.3105 | H78: 1.09825 | I78: 247.58 | J78: 289.74 | K78: 65.28 | L78: 80.58 | M78: 0 | N78: 0 | O78: 312.86 | P78: 370.32 | Q78: 440.74 | R78: 114.98436
A79: 5.7.3 | B79: DEA 92415.1 | D79: Fabricação, montagem e desmontagem de fôrma para estruturas (paredes de reservatório,fossa séptica) em chapa de madeira compensada resinada, e = 17 mm., 2 utilizações. | E79: m² | F79: 184.8875 | G79: 34.96 | H79: 149.9275 | I79: 82.98 | J79: 97.11 | K79: 43.05 | L79: 53.14 | M79: 0 | N79: 0 | O79: 126.03 | P79: 150.25 | Q79: 23301.37 | R79: 5252.74
A80: 5.7.4 | B80: DEA 92915 | C80: 431518-9 | D80: Armação de estruturas de concreto armado, exceto vigas, pilares, lajes e fundações, utilizando aço ca-60 de 5,0 mm - montagem. | E80: kg | F80: 5 | G80: 0 | H80: 5 | I80: 12.09 | J80: 14.15 | K80: 4.66 | L80: 5.75 | M80: 0 | N80: 0 | O80: 16.75 | P80: 19.9 | Q80: 83.75 | R80: 0
A81: 5.7.5 | B81: DEA 92916 | C81: 505406-0 | D81: Armação de estruturas de concreto armado, exceto vigas, pilares, lajes e fundações, utilizando aço ca-50 de 6,3 mm - montagem. | E81: kg | F81: 475 | G81: 136.544826 | H81: 338.455174 | I81: 12.83 | J81: 15.01 | K81: 3.25 | L81: 4.01 | M81: 0 | N81: 0 | O81: 16.08 | P81: 19.02 | Q81: 7638 | R81: 2597.082591
A82: 5.7.6 | B82: DEA 92917 | C82: 505408-7 | D82: Armação de estruturas de concreto armado, exceto vigas, pilares, lajes e fundações, utilizando aço ca-50 de 8,0 mm - montagem. | E82: kg | F82: 1057.5 | G82: 195.31754 | H82: 862.18246 | I82: 13 | J82: 15.21 | K82: 2.25 | L82: 2.78 | M82: 0 | N82: 0 | O82: 15.25 | P82: 17.99 | Q82: 16126.88 | R82: 3513.762545
A83: 5.7.7 | B83: DEA 92919 | C83: 431516-2 | D83: Armação de estruturas de concreto armado, exceto vigas, pilares, lajes e fundações, utilizando aço ca-50 de 10,0 mm - montagem. | E83: kg | F83: 406.25 | G83: 0 | H83: 406.25 | I83: 12.1 | J83: 14.16 | K83: 1.61 | L83: 1.99 | M83: 0 | N83: 0 | O83: 13.71 | P83: 16.15 | Q83: 5569.69 | R83: 0
A84: 5.7.8 | B84: DEA 92922 | C84: 505411-7 | D84: Armação de estruturas de concreto armado, exceto vigas, pilares, lajes e fundações, utilizando aço ca-50 de 16,0 mm - montagem. | E84: kg | F84: 357.5 | G84: 0 | H84: 357.5 | I84: 10.31 | J84: 12.07 | K84: 0.74 | L84: 0.91 | M84: 0 | N84: 0 | O84: 11.05 | P84: 12.98 | Q84: 3950.38 | R84: 0
A85: 5.7.9 | B85: DEA 92923 | C85: 442913-3 | D85: Armação de estruturas de concreto armado, exceto vigas, pilares, lajes e fundações, utilizando aço ca-50 de 20,0 mm - montagem. | E85: kg | F85: 50 | G85: 0 | H85: 50 | I85: 11.97 | J85: 14.01 | K85: 0.48 | L85: 0.59 | M85: 0 | N85: 0 | O85: 12.45 | P85: 14.6 | Q85: 622.5 | R85: 0
A86: 5.7.10 | B86: DEA 90861.3 | C86: 505332-3 | D86: Concretagem de edificações (paredes e lajes) feitas com sistema de formas manuseáveis, com concreto usinado bombeável FCK 35Mpa com adição de metacaulim - Lançamento, adensamento e acabamento. | E86: m³ | F86: 17.6 | G86: 3.3285 | H86: 14.2715 | I86: 426.28 | J86: 498.88 | K86: 23.06 | L86: 28.47 | M86: 0 | N86: 0 | O86: 449.34 | P86: 527.35 | Q86: 7908.38 | R86: 1755.284475
A87: 5.7.11 | B87: DEA 96995 | C87: 435286-6 | D87: Reaterro manual apiloado com soquete. | E87: m³ | F87: 16.25 | G87: 0 | H87: 16.25 | I87: 11.35 | J87: 13.28 | K87: 30.2 | L87: 37.28 | M87: 0 | N87: 0 | O87: 41.55 | P87: 50.56 | Q87: 675.19 | R87: 0
A88: 5.7.12 | B88: DEA 100205 | D88: Transporte horizontal com jerica de 60 l, de massa/ granel (unidade: m3xkm). | E88: M3XKM | F88: 2.856945 | G88: 0.0666 | H88: 2.790345 | I88: 323.08 | J88: 378.1 | K88: 859.98 | L88: 1061.56 | M88: 0 | N88: 0 | O88: 1183.06 | P88: 1439.66 | Q88: 3379.94 | R88: 95.881356
A89: 5.7.13 | B89: DEA 1.54 | C89: 435241-6 | D89: Remoção de metralha em caminhão basculante D.M.T. 6 Km, inclusive carga e descarga mecânica. | E89: m³ | F89: 95.2315 | G89: 0 | H89: 95.2315 | I89: 6.45 | J89: 7.55 | K89: 7.09 | L89: 8.75 | M89: 0 | N89: 0 | O89: 13.54 | P89: 16.3 | Q89: 1289.43 | R89: 0
A90: 6 | D90: SUPERSTRUTURA | G90: 0 | H90: 0 | I90: 0 | J90: 0 | K90: 0 | L90: 0 | M90: 0 | N90: 0 | O90: 0 | P90: 0 | Q90: 0 | R90: 0
A91: 6.1 | D91: 1º TETO | G91: 0 | H91: 0 | I91: 0 | J91: 0 | K91: 0 | L91: 0 | M91: 0 | N91: 0 | O91: 0 | P91: 0 | Q91: 0 | R91: 0
A92: 6.1.1 | B92: DEA 92419 | C92: 556548-0 | D92: Montagem e desmontagem de fôrma de pilares retangulares e estruturas similares, pé-direito simples, em chapa de madeira compensada resinada, e = 17 MM, 4 utilizações. | E92: m² | F92: 88.74 | G92: 88.116 | H92: 0.624 | I92: 43.86 | J92: 51.33 | K92: 31.98 | L92: 39.48 | M92: 0 | N92: 0 | O92: 75.84 | P92: 90.81 | Q92: 6730.04 | R92: 8001.81396
A93: 6.1.2 | B93: DEA 92720.1 | C93: 505418-4 | D93: Concretagem de pilares, fck = 35 mpa e uso de bomba em edificação com seção média de pilares menor ou igual a 0,25 m² - lançamento, adensamento e acabamento. | E93: m³ | F93: 5.78 | G93: 5.5569 | H93: 0.2231 | I93: 431.41 | J93: 504.88 | K93: 21.86 | L93: 26.98 | M93: 0 | N93: 0 | O93: 453.27 | P93: 531.86 | Q93: 2619.9 | R93: 2955.492834
A94: 6.1.3 | B94: DEA 92452 | C94: 470666-8 | D94: Montagem e desmontagem de fôrma de viga, escoramento metálico, pé-direito simples, em chapa de madeira resinada, 2 utilizações. | E94: m² | F94: 173.3 | G94: 173.2958 | H94: 0.0042 | I94: 77.8 | J94: 91.05 | K94: 49.91 | L94: 61.61 | M94: 0 | N94: 0 | O94: 127.71 | P94: 152.66 | Q94: 22132.14 | R94: 26455.33683
A95: 6.1.4 | B95: DEA 92510 | C95: 563831-3 | D95: Montagem e desmontagem de fôrma de laje maciça com área média maior que 20 m², pé-direito simples, em chapa de madeira compensada resinada e = 17 mm, 2 utilizações. | E95: m² | F95: 26.58 | G95: 26.574 | H95: 0.006 | I95: 39.27 | J95: 45.96 | K95: 15.37 | L95: 18.97 | M95: 0 | N95: 0 | O95: 54.64 | P95: 64.93 | Q95: 1452.33 | R95: 1725.44982
A96: 6.1.5 | B96: DEA 92490.1 | C96: 583832-1 | D96: Montagem e desmontagem de fôrma de laje nervurada com cubeta e assoalho com área média maior que 20 m², pé-direito simples, em chapa de madeira compensada resinada, 8 utilizações, excluso a locação das formas plásticas | E96: m² | F96: 295.01 | G96: 293.61 | H96: 1.4 | I96: 17.96 | J96: 21.02 | K96: 18.43 | L96: 22.75 | M96: 0 | N96: 0 | O96: 36.39 | P96: 43.77 | Q96: 10735.41 | R96: 12851.3097
A97: 6.1.6 | B97: DEA 4.22 A | C97: 505831-7 | D97: Locação de formas em polipropileno, tipo cubeta, para laje nervurada, dimensões (80x80x30cm) ou (80x80x40cm) | E97: undxmês | F97: 715.5 | G97: 596 | H97: 119.5 | I97: 0 | J97: 0 | K97: 10.38 | L97: 12.81 | M97: 0 | N97: 0 | O97: 10.38 | P97: 12.81 | Q97: 7426.89 | R97: 7634.76
A98: 6.1.7 | B98: DEA 102087 | C98: 564072-5 | D98: Fabricação de fôrma para escada dupla com 2 lances em "x" e laje plana, em chapa de madeira compensada resinada, e= 17 mm. af_11/2020 | E98: m² | F98: 11.58 | G98: 11.58 | H98: 0 | I98: 157.38 | J98: 184.18 | K98: 22.01 | L98: 27.17 | M98: 0 | N98: 0 | O98: 179.39 | P98: 211.35 | Q98: 2077.34 | R98: 2447.433
A99: 6.1.8 | B99: DEA 92726.02 | C99: 505491-5 | D99: Concretagem de vigas e lajes, fck=35 mpa, para lajes maciças ou nervuradas com uso de bomba em edificação com área média de lajes maior que 20 m² - lançamento, adensamento e acabamento. | E99: m³ | F99: 73.13 | G99: 73.12229708 | H99: 0.00770292 | I99: 429.54 | J99: 502.69 | K99: 17.51 | L99: 21.61 | M99: 0 | N99: 0 | O99: 447.05 | P99: 524.3 | Q99: 32692.77 | R99: 38338.02036
A100: 6.2 | D100: 2º TETO | G100: 0 | H100: 0 | I100: 0 | J100: 0 | K100: 0 | L100: 0 | M100: 0 | N100: 0 | O100: 0 | P100: 0 | Q100: 0 | R100: 0
A101: 6.2.1 | B101: DEA 92419 | C101: 469865-7 | D101: Montagem e desmontagem de fôrma de pilares retangulares e estruturas similares, pé-direito simples, em chapa de madeira compensada resinada, e = 17 MM, 4 utilizações. | E101: m² | F101: 92.37 | G101: 91.592 | H101: 0.778 | I101: 43.86 | J101: 51.33 | K101: 31.98 | L101: 39.48 | M101: 0 | N101: 0 | O101: 75.84 | P101: 90.81 | Q101: 7005.34 | R101: 8317.46952
A102: 6.2.2 | B102: DEA 92720.1 | C102: 505418-4 | D102: Concretagem de pilares, fck = 35 mpa e uso de bomba em edificação com seção média de pilares menor ou igual a 0,25 m² - lançamento, adensamento e acabamento. | E102: m³ | F102: 6.07 | G102: 6.07 | H102: 0 | I102: 431.41 | J102: 504.88 | K102: 21.86 | L102: 26.98 | M102: 0 | N102: 0 | O102: 453.27 | P102: 531.86 | Q102: 2751.35 | R102: 3228.3902
A103: 6.2.3 | B103: DEA 92452 | C103: 470666-8 | D103: Montagem e desmontagem de fôrma de viga, escoramento metálico, pé-direito simples, em chapa de madeira resinada, 2 utilizações. | E103: m² | F103: 205.4 | G103: 205.39188 | H103: 0.00812 | I103: 77.8 | J103: 91.05 | K103: 49.91 | L103: 61.61 | M103: 0 | N103: 0 | O103: 127.71 | P103: 152.66 | Q103: 26231.63 | R103: 31355.1244
A104: 6.2.4 | B104: DEA 92510 | D104: Montagem e desmontagem de fôrma de laje maciça com área média maior que 20 m², pé-direito simples, em chapa de madeira compensada resinada e = 17 mm, 2 utilizações. | E104: m² | F104: 0.27 | G104: 0.27 | H104: 0 | I104: 39.27 | J104: 45.96 | K104: 15.37 | L104: 18.97 | M104: 0 | N104: 0 | O104: 54.64 | P104: 64.93 | Q104: 14.75 | R104: 17.5311
A105: 6.2.5 | B105: DEA 92490.1 | D105: Montagem e desmontagem de fôrma de laje nervurada com cubeta e assoalho com área média maior que 20 m², pé-direito simples, em chapa de madeira compensada resinada, 8 utilizações, excluso a locação das formas plásticas | E105: m² | F105: 325.39 | G105: 325.36 | H105: 0.03 | I105: 17.96 | J105: 21.02 | K105: 18.43 | L105: 22.75 | M105: 0 | N105: 0 | O105: 36.39 | P105: 43.77 | Q105: 11840.94 | R105: 14241.0072
A106: 6.2.6 | B106: DEA 92726.02 | C106: 505491-5 | D106: Concretagem de vigas e lajes, fck=35 mpa, para lajes maciças ou nervuradas com uso de bomba em edificação com área média de lajes maior que 20 m² - lançamento, adensamento e acabamento. | E106: m³ | F106: 78.76 | G106: 78.75784 | H106: 0.00216 | I106: 429.54 | J106: 502.69 | K106: 17.51 | L106: 21.61 | M106: 0 | N106: 0 | O106: 447.05 | P106: 524.3 | Q106: 35209.66 | R106: 41292.73551
A107: 6.3 | D107: ÁTICO | G107: 0 | H107: 0 | I107: 0 | J107: 0 | K107: 0 | L107: 0 | M107: 0 | N107: 0 | O107: 0 | P107: 0 | Q107: 0 | R107: 0
A108: 6.3.1 | B108: DEA 92419 | C108: 469865-7 | D108: Montagem e desmontagem de fôrma de pilares retangulares e estruturas similares, pé-direito simples, em chapa de madeira compensada resinada, e = 17 MM, 4 utilizações. | E108: m² | F108: 17.35 | G108: 13.17 | H108: 4.18 | I108: 43.86 | J108: 51.33 | K108: 31.98 | L108: 39.48 | M108: 0 | N108: 0 | O108: 75.84 | P108: 90.81 | Q108: 1315.82 | R108: 1195.9677
A109: 6.3.2 | B109: DEA 92720.1 | C109: 505418-4 | D109: Concretagem de pilares, fck = 35 mpa e uso de bomba em edificação com seção média de pilares menor ou igual a 0,25 m² - lançamento, adensamento e acabamento. | E109: m³ | F109: 1.11 | G109: 0.85 | H109: 0.26 | I109: 431.41 | J109: 504.88 | K109: 21.86 | L109: 26.98 | M109: 0 | N109: 0 | O109: 453.27 | P109: 531.86 | Q109: 503.13 | R109: 452.081
A110: 6.3.3 | B110: DEA 92452 | C110: 470666-8 | D110: Montagem e desmontagem de fôrma de viga, escoramento metálico, pé-direito simples, em chapa de madeira resinada, 2 utilizações. | E110: m² | F110: 58.2 | G110: 58.2 | H110: 0 | I110: 77.8 | J110: 91.05 | K110: 49.91 | L110: 61.61 | M110: 0 | N110: 0 | O110: 127.71 | P110: 152.66 | Q110: 7432.72 | R110: 8884.812
A111: 6.3.4 | B111: DEA 92510 | C111: 563831-3 | D111: Montagem e desmontagem de fôrma de laje maciça com área média maior que 20 m², pé-direito simples, em chapa de madeira compensada resinada e = 17 mm, 2 utilizações. | E111: m² | F111: 39.63 | G111: 39.63 | H111: 0 | I111: 39.27 | J111: 45.96 | K111: 15.37 | L111: 18.97 | M111: 0 | N111: 0 | O111: 54.64 | P111: 64.93 | Q111: 2165.38 | R111: 2573.1759
A112: 6.3.5 | B112: DEA 92726.02 | C112: 505491-5 | D112: Concretagem de vigas e lajes, fck=35 mpa, para lajes maciças ou nervuradas com uso de bomba em edificação com área média de lajes maior que 20 m² - lançamento, adensamento e acabamento. | E112: m³ | F112: 8.5 | G112: 8.49135 | H112: 0.00865 | I112: 429.54 | J112: 502.69 | K112: 17.51 | L112: 21.61 | M112: 0 | N112: 0 | O112: 447.05 | P112: 524.3 | Q112: 3799.93 | R112: 4452.014805
A113: 6.4 | D113: ARMAÇÃO DA ESTRUTURA | G113: 0 | H113: 0 | I113: 0 | J113: 0 | K113: 0 | L113: 0 | M113: 0 | N113: 0 | O113: 0 | P113: 0 | Q113: 0 | R113: 0
A114: 6.4.1 | B114: DEA 92759 | C114: 432290-8 | D114: Armação de pilar ou viga de uma estrutura convencional de concreto armado em um edifício de múltiplos pavimentos utilizando aço ca-60 de 5,0 mm - montagem. | E114: kg | F114: 800 | G114: 799.86241 | H114: 0.13759 | I114: 11.82 | J114: 13.83 | K114: 3.73 | L114: 4.6 | M114: 0 | N114: 0 | O114: 15.55 | P114: 18.43 | Q114: 12440 | R114: 14741.46422
A115: 6.4.2 | B115: DEA 92760 | C115: 432289-4 | D115: Armação de pilar ou viga de uma estrutura convencional de concreto armado em um edifício de múltiplos pavimentos utilizando aço ca-50 de 6,3 mm - montagem. | E115: kg | F115: 400.0007 | G115: 335.1605978 | H115: 64.8401022 | I115: 12.61 | J115: 14.76 | K115: 2.54 | L115: 3.14 | M115: 0 | N115: 0 | O115: 15.15 | P115: 17.9 | Q115: 6060.01 | R115: 5999.374701
A116: 6.4.3 | B116: DEA 92761 | C116: 431527-8 | D116: Armação de pilar ou viga de uma estrutura convencional de concreto armado em um edifício de múltiplos pavimentos utilizando aço ca-50 de 8,0 mm - montagem. | E116: kg | F116: 1000 | G116: 999.992286 | H116: 0.007714 | I116: 12.85 | J116: 15.04 | K116: 1.71 | L116: 2.11 | M116: 0 | N116: 0 | O116: 14.56 | P116: 17.15 | Q116: 14560 | R116: 17149.8677
A117: 6.4.4 | B117: DEA 92762 | C117: 432288-6 | D117: Armação de pilar ou viga de uma estrutura convencional de concreto armado em um edifício de múltiplos pavimentos utilizando aço ca-50 de 10,0 mm - montagem. | E117: kg | F117: 1500 | G117: 933.158294 | H117: 566.841706 | I117: 11.98 | J117: 14.02 | K117: 1.21 | L117: 1.49 | M117: 0 | N117: 0 | O117: 13.19 | P117: 15.51 | Q117: 19785 | R117: 14473.28514
A118: 6.4.5 | B118: DEA 92763 | C118: 439952-8 | D118: Armação de pilar ou viga de uma estrutura convencional de concreto armado em um edifício de múltiplos pavimentos utilizando aço ca-50 de 12,5 mm - montagem. | E118: kg | F118: 1100 | G118: 1099.990244 | H118: 0.009756 | I118: 10.34 | J118: 12.1 | K118: 0.83 | L118: 1.02 | M118: 0 | N118: 0 | O118: 11.17 | P118: 13.12 | Q118: 12287 | R118: 14431.872
A119: 6.4.6 | B119: DEA 92764 | C119: 439957-9 | D119: Armação de pilar ou viga de uma estrutura convencional de concreto armado em um edifício de múltiplos pavimentos utilizando aço ca-50 de 16,0 mm - montagem. | E119: kg | F119: 900 | G119: 899.99224 | H119: 0.00776 | I119: 10.25 | J119: 12 | K119: 0.55 | L119: 0.68 | M119: 0 | N119: 0 | O119: 10.8 | P119: 12.68 | Q119: 9720 | R119: 11411.9016
A120: 6.4.7 | B120: DEA 92765 | C120: 456067-1 | D120: Armação de pilar ou viga de uma estrutura convencional de concreto armado em um edifício de múltiplos pavimentos utilizando aço ca-50 de 20,0 mm - montagem. | E120: kg | F120: 1000 | G120: 1495.50384 | H120: -495.50384 | I120: 11.93 | J120: 13.96 | K120: 0.35 | L120: 0.43 | M120: 0 | N120: 0 | O120: 12.28 | P120: 14.39 | Q120: 12280 | R120: 21520.30026
A121: 6.4.8 | B121: DEA 92766 | C121: 455637-2 | D121: Armação de pilar ou viga de uma estrutura convencional de concreto armado em um edifício de múltiplos pavimentos utilizando aço ca-50 de 25,0 mm - montagem. | E121: kg | F121: 300 | G121: 0 | H121: 300 | I121: 11.87 | J121: 13.89 | K121: 0.2 | L121: 0.25 | M121: 0 | N121: 0 | O121: 12.07 | P121: 14.14 | Q121: 3621 | R121: 0
A122: 6.4.9 | B122: DEA 92768 | C122: 432287-8 | D122: Armação de laje de uma estrutura convencional de concreto armado em um edifício de múltiplos pavimentos utilizando aço CA-60 de 5.0 mm - Montagem. | E122: kg | F122: 400 | G122: 21.80445 | H122: 378.19555 | I122: 11.72 | J122: 13.72 | K122: 2.66 | L122: 3.28 | M122: 0 | N122: 0 | O122: 14.38 | P122: 17 | Q122: 5752 | R122: 370.67565
A123: 6.4.10 | B123: DEA 92769 | C123: 432286-0 | D123: Armação laje de uma estrutura convencional de concreto armado em um edifício de múltiplos pavimentos utilizando aço CA-50 de 6.3 mm - Montagem. | E123: kg | F123: 245.86553 | G123: 245.86 | H123: 0.00553 | I123: 12.47 | J123: 14.59 | K123: 1.77 | L123: 2.18 | M123: 0 | N123: 0 | O123: 14.24 | P123: 16.77 | Q123: 3501.13 | R123: 4123.0722
A124: 6.4.11 | B124: DEA 92770 | C124: 440995-7 | D124: Armação de laje de uma estrutura convencional de concreto armado em um edifício de múltiplos pavimentos utilizando aço CA-50 de 8.0 mm - Montagem. | E124: kg | F124: 600 | G124: 258.979369 | H124: 341.020631 | I124: 12.67 | J124: 14.83 | K124: 1.17 | L124: 1.44 | M124: 0 | N124: 0 | O124: 13.84 | P124: 16.27 | Q124: 8304 | R124: 4213.594334
A125: 6.4.12 | B125: DEA 92771 | C125: 432284-3 | D125: Armação de laje de uma estrutura convencional de concreto armado em um edifício de múltiplos pavimentos utilizando aço CA-50 de 10.0 mm - Montagem. | E125: kg | F125: 750 | G125: 680.543604 | H125: 69.456396 | I125: 11.83 | J125: 13.84 | K125: 0.81 | L125: 1 | M125: 0 | N125: 0 | O125: 12.64 | P125: 14.84 | Q125: 9480 | R125: 10099.26708
A126: 6.4.13 | B126: DEA 92772 | C126: 461658-8 | D126: Armação de laje de uma estrutura convencional de concreto armado em um edifício de múltiplos pavimentos utilizando aço CA-50 de 12.5 mm - Montagem. | E126: kg | F126: 500 | G126: 500 | H126: 0 | I126: 10.22 | J126: 11.96 | K126: 0.53 | L126: 0.65 | M126: 0 | N126: 0 | O126: 10.75 | P126: 12.61 | Q126: 5375 | R126: 6305
A127: 6.4.14 | B127: DEA 92773 | C127: 469869-0 | D127: Armação de laje de uma estrutura convencional de concreto armado em um edifício de múltiplos pavimentos utilizando aço ca-50 de 16,0 mm - montagem. | E127: kg | F127: 400 | G127: 399.999682 | H127: 0.000318 | I127: 10.17 | J127: 11.9 | K127: 0.33 | L127: 0.41 | M127: 0 | N127: 0 | O127: 10.5 | P127: 12.31 | Q127: 4200 | R127: 4923.996085
A128: 6.4.15 | B128: DEA 92774 | C128: 469869-0 | D128: Armação de laje de uma estrutura convencional de concreto armado em um edifício de múltiplos pavimentos utilizando aço ca-50 de 20,0 mm - montagem. | E128: kg | F128: 400 | G128: 0 | H128: 400 | I128: 11.87 | J128: 13.89 | K128: 0.19 | L128: 0.23 | M128: 0 | N128: 0 | O128: 12.06 | P128: 14.12 | Q128: 4824 | R128: 0
A129: 6.4.16 | B129: DEA 85662.1 | C129: 430078-5 | D129: Armacao em tela de aco soldada nervurada q-61, aco ca-60, 3,4mm, malha 15x15cm | E129: m² | F129: 717 | G129: 660.71 | H129: 56.29 | I129: 11.89 | J129: 13.91 | K129: 1.26 | L129: 1.56 | M129: 0 | N129: 0 | O129: 13.15 | P129: 15.47 | Q129: 9428.55 | R129: 10221.1837
A130: 7 | D130: VEDAÇÃO | G130: 0 | H130: 0 | I130: 0 | J130: 0 | K130: 0 | L130: 0 | M130: 0 | N130: 0 | O130: 0 | P130: 0 | Q130: 0 | R130: 0
A131: 7.1 | D131: ALVENARIA TIJOLO CERÂMICO | G131: 0 | H131: 0 | I131: 0 | J131: 0 | K131: 0 | L131: 0 | M131: 0 | N131: 0 | O131: 0 | P131: 0 | Q131: 0 | R131: 0
A132: 7.1.1 | B132: DEA 89043 | C132: 440978-7 | D132: (Composição representativa) do serviço de alvenaria de vedação de blocos vazados de cerâmica de 9x19x19cm (espessura 9cm), para edificação habitacional multifamiliar (prédio). | E132: m² | F132: 1469.56795 | G132: 1468.0552 | H132: 1.51275 | I132: 26.41 | J132: 30.91 | K132: 30.13 | L132: 37.19 | M132: 0 | N132: 0 | O132: 56.54 | P132: 68.1 | Q132: 83089.37 | R132: 99974.55912
A133: 7.1.2 | B133: DEA 93201 | C133: 499185-0 | D133: Fixação (encunhamento) de alvenaria de vedação com argamassa aplicada com colher. | E133: m | F133: 436.46 | G133: 230.58 | H133: 205.88 | I133: 2.24 | J133: 2.62 | K133: 3.23 | L133: 3.99 | M133: 0 | N133: 0 | O133: 5.47 | P133: 6.61 | Q133: 2387.44 | R133: 1524.1338
A134: 7.1.3 | B134: DEA 4.14 | C134: 430079-3 | D134: Fornecimento e assentamento de telas soldadas produzidas com fio de 1,65 mm de diâmetro e malha de 15 x 15 mm, galvanizadas, com largura x comprimento de 7,5x50cm, Belgofix ou equivalente. | E134: unid. | F134: 1311 | G134: 1311 | H134: 0 | I134: 5.75 | J134: 6.73 | K134: 2.98 | L134: 3.68 | M134: 0 | N134: 0 | O134: 8.73 | P134: 10.41 | Q134: 11445.03 | R134: 13647.51
A135: 7.2 | D135: VERGA-CONTRAVERGA EM CONCRETO | G135: 0 | H135: 0 | I135: 0 | J135: 0 | K135: 0 | L135: 0 | M135: 0 | N135: 0 | O135: 0 | P135: 0 | Q135: 0 | R135: 0
A136: 7.2.1 | B136: DEA 93182 | C136: 454988-0 | D136: Verga pré-moldada para janelas com até 1,5 m de vão. | E136: m | F136: 19.04 | G136: 19.04 | H136: 0 | I136: 29.95 | J136: 35.05 | K136: 8.14 | L136: 10.05 | M136: 0 | N136: 0 | O136: 38.09 | P136: 45.1 | Q136: 725.23 | R136: 858.704
A137: 7.2.2 | B137: DEA 93183 | C137: 456457-0 | D137: Verga pré-moldada para janelas com mais de 1,5 m de vão. | E137: m | F137: 59.402 | G137: 59.4 | H137: 0.002 | I137: 39.83 | J137: 46.61 | K137: 9.12 | L137: 11.26 | M137: 0 | N137: 0 | O137: 48.95 | P137: 57.87 | Q137: 2907.73 | R137: 3437.478
A138: 7.2.3 | B138: DEA 93184 | C138: 454993-7 | D138: Verga pré-moldada para portas com até 1,5 m de vão. | E138: m | F138: 48.16 | G138: 48.16 | H138: 0 | I138: 21.29 | J138: 24.92 | K138: 7 | L138: 8.64 | M138: 0 | N138: 0 | O138: 28.29 | P138: 33.56 | Q138: 1362.45 | R138: 1616.2496
A139: 7.2.4 | B139: DEA 93185 | C139: 444316-0 | D139: Verga pré-moldada para portas com mais de 1,5 m de vão. | E139: m | F139: 2.52 | G139: 2.3 | H139: 0.22 | I139: 39.47 | J139: 46.19 | K139: 8.79 | L139: 10.85 | M139: 0 | N139: 0 | O139: 48.26 | P139: 57.04 | Q139: 121.62 | R139: =P139*G139 -> 131.192
A140: 7.2.5 | B140: DEA 93194 | C140: 438993-0 | D140: Contraverga pré-moldada para vãos de até 1,5 m de comprimento. | E140: m | F140: 20.65 | G140: 20.65 | H140: 0 | I140: 29.41 | J140: 34.42 | K140: 7.99 | L140: 9.86 | M140: 0 | N140: 0 | O140: 37.4 | P140: 44.28 | Q140: 772.31 | R140: 914.382
A141: 7.2.6 | B141: DEA 93195 | C141: 457789-2 | D141: Contraverga pré-moldada para vãos de mais de 1,5 m de comprimento. | E141: m | F141: 59.402 | G141: 59.4 | H141: 0.002 | I141: 35.71 | J141: 41.79 | K141: 9.09 | L141: 11.22 | M141: 0 | N141: 0 | O141: 44.8 | P141: 53.01 | Q141: 2661.21 | R141: 3148.794
A142: 8 | D142: REVESTIMENTO DE PAREDE INTERNA | G142: 0 | H142: 0 | I142: 0 | J142: 0 | K142: 0 | L142: 0 | M142: 0 | N142: 0 | O142: 0 | P142: 0 | Q142: 0 | R142: 0
A143: 8.1 | D143: CHAPISCO INTERNO | G143: 0 | H143: 0 | I143: 0 | J143: 0 | K143: 0 | L143: 0 | M143: 0 | N143: 0 | O143: 0 | P143: 0 | Q143: 0 | R143: 0
A144: 8.1.1 | B144: DEA 87879 | C144: 432304-1 | D144: Chapisco aplicado em alvenarias e estruturas de concreto internas, com colher de pedreiro. argamassa traço 1:3 com preparo em betoneira 400l. | E144: m² | F144: 2189.486 | G144: 2189.48 | H144: 0.006000000001 | I144: 1.84 | J144: 2.15 | K144: 1.69 | L144: 2.09 | M144: 0 | N144: 0 | O144: 3.53 | P144: 4.24 | Q144: 7728.89 | R144: 9283.3952
A145: 8.2 | D145: EMBOÇO / MASSA UNICA INTERNA | G145: 0 | H145: 0 | I145: 0 | J145: 0 | K145: 0 | L145: 0 | M145: 0 | N145: 0 | O145: 0 | P145: 0 | Q145: 0 | R145: 0
A146: 8.2.1 | B146: DEA 89048 | C146: 281201-0 | D146: (Composição representativa) do serviço de emboço/massa única, traço 1:2:8, preparo mecânico, com betoneira de 400l, em paredes de ambientes internos, com execução de taliscas, para edificação habitacional multifamiliar (prédio). | E146: m² | F146: 2189.486 | G146: 2141.01 | H146: 48.476 | I146: 18.84 | J146: 22.05 | K146: 14.54 | L146: 17.95 | M146: 0 | N146: 0 | O146: 33.38 | P146: 40 | Q146: 73085.04 | R146: 85640.4
A147: 8.3 | D147: REVESTIMENTO DE PAREDE INTERNA EM PORCELANATO | G147: 0 | H147: 0 | I147: 0 | J147: 0 | K147: 0 | L147: 0 | M147: 0 | N147: 0 | O147: 0 | P147: 0 | Q147: 0 | R147: 0
A148: 8.3.1 | B148: DEA 9.48A | C148: 241879-7 | D148: AZULEJO OCEANIC WHITE CÓD. 62060108 DA LINHA INCEPA 20cmx20cm, junta mínima recomendada de 3mm ou equivalente técnico, assentado com argamassa colante AC III Quartzolit ou equivalente e rejuntado com argamassa de rejuntamento flexível Quartzolit ou equivalente. | E148: m² | F148: 12.438 | G148: 6.47705 | H148: 5.96095 | I148: 75.1 | J148: 87.89 | K148: 10.98 | L148: 13.55 | M148: 0 | N148: 0 | O148: 86.08 | P148: 101.44 | Q148: 1070.66 | R148: 657.031952
A149: 8.3.1 | B149: DEA 9.49A | C149: 241879-7 | D149: AZULEJO OCEANIC LAKE BLUE CÓD. 62060102 DA LINHA PS INCEPA 20cmx20cm, junta mínima recomendada de 3mm ou equivalente técnico, assentado com argamassa colante AC III Quartzolit ou equivalente e rejuntado com argamassa de rejuntamento flexível Quartzolit ou equivalente. | E149: m² | F149: 12.438 | G149: 6.47705 | H149: 5.96095 | I149: 75.1 | J149: 87.89 | K149: 10.98 | L149: 13.55 | M149: 0 | N149: 0 | O149: 86.08 | P149: 101.44 | Q149: 1070.66 | R149: 657.031952
A150: 8.3.2 | B150: DEA 9.21A | C150: 476353-0 | D150: Fornecimento e assentamento de cerâmica, cor Cristal Branco, Elizabeth ou equivalente, dimensões aproximadas 5,0 x 10,0 cm, assentada horizontalmente em paredes internas com argamassa industrializada AC-II, com espaçamento de 4mm e rejuntada com argamassa de rejuntamento flexível e impermeável, na cor branca | E150: m² | F150: 616.0926 | G150: 506.4853 | H150: 109.6073 | I150: 51.62 | J150: 60.41 | K150: 17.6 | L150: 21.73 | M150: 0 | N150: 0 | O150: 69.22 | P150: 82.14 | Q150: 42645.93 | R150: 41602.70254
A151: 8.3.3 | B151: DEA 7.24A | C151: 563860-7 | D151: PAINEL REVESTIMENTO PAMESA CALAIS MADEIRA TIPO "A" RETIFICADO ,TAM. 0,33cmX0,62cm ou equivalente técnico assentado verticalmente, na parede interna com argamassa industrializada AC III e rejuntada com argamassa colante industrializada e rejuntada com argamassa de rejuntamento flexível impermeável | E151: m² | F151: 28.17 | G151: 21.49 | H151: 6.68 | I151: 77.92 | J151: 91.19 | K151: 16.65 | L151: 20.55 | M151: 0 | N151: 0 | O151: 94.57 | P151: 111.74 | Q151: 2664.04 | R151: 2401.2926
A152: 9 | D152: REVESTIMENTO DE PISO INTERNO | G152: 0 | H152: 0 | I152: 0 | J152: 0 | K152: 0 | L152: 0 | M152: 0 | N152: 0 | O152: 0 | P152: 0 | Q152: 0 | R152: 0
A153: 9.1 | D153: CONCRETO DO PISO DA LAMINA DE CONSTRUÇÃO | G153: 0 | H153: 0 | I153: 0 | J153: 0 | K153: 0 | L153: 0 | M153: 0 | N153: 0 | O153: 0 | P153: 0 | Q153: 0 | R153: 0
A154: 9.1.1 | B154: DEA 97094.1 | C154: 505605-5 | D154: Concretagem de radier, piso ou laje sobre solo, fck 15 mpa usinado bombeável (não armado) ,espessura de 5 cm - lançamento, adensamento e acabamento. | E154: m³ | F154: 16.17 | G154: 16.17 | H154: 0 | I154: 367.55 | J154: 430.14 | K154: 53.78 | L154: 66.39 | M154: 0 | N154: 0 | O154: 421.33 | P154: 496.53 | Q154: 6812.91 | R154: 8028.8901
A155: 9.2 | D155: CONTRAPISO | G155: 0 | H155: 0 | I155: 0 | J155: 0 | K155: 0 | L155: 0 | M155: 0 | N155: 0 | O155: 0 | P155: 0 | Q155: 0 | R155: 0
A156: 9.2.1 | B156: DEA 87630.01 | C156: 505644-6 | D156: Contrapiso em argamassa traço 1:4 (cimento e areia), preparo mecânico com betoneira 400 l, espessura 3cm. | E156: m² | F156: 666.818 | G156: 666.813 | H156: 0.005 | I156: 14.64 | J156: 17.13 | K156: 12.56 | L156: 15.5 | M156: 0 | N156: 0 | O156: 27.2 | P156: 32.63 | Q156: 18137.45 | R156: 21758.10819
A157: 9.3 | D157: REVESTIMENTO DE PISO E RODAPÉ | G157: 0 | H157: 0 | I157: 0 | J157: 0 | K157: 0 | L157: 0 | M157: 0 | N157: 0 | O157: 0 | P157: 0 | Q157: 0 | R157: 0
A158: 9.3.1 | B158: DEA 7.5A | C158: 428759-2 | D158: Fornecimento e assentamento de porcelanato polido retificado, tipo A, linha Smoke, 74,0 x 74,0cm, Elizabeth ou equivalente, assentado em PISO OU PAREDE com argamassa industrializada AC-III, com espaçamento de 2mm e rejuntado com argamassa de rejuntamento flexível e impermeável, na cor cinza platino. | E158: m² | F158: 187.22 | G158: 187.22 | H158: 0 | I158: 77.84 | J158: 91.1 | K158: 16.65 | L158: 20.55 | M158: 0 | N158: 0 | O158: 94.49 | P158: 111.65 | Q158: 17690.42 | R158: 20903.113
A159: 9.3.2 | B159: DEA 7.14 A | C159: 563910-7 | D159: Fornecimento e assentamento de rodapé em Porcelanato SMOKE 74X74cm retificado (Elizabeth) tipo A ou equivalente com 7cm, assentado com argamassa colante industrializada e rejuntada com argamassa de rejuntamento flexível e impermeável. | E159: m | F159: 88.77 | G159: 34.62 | H159: 54.15 | I159: 6.4 | J159: 7.49 | K159: 2.01 | L159: 2.48 | M159: 0 | N159: 0 | O159: 8.41 | P159: 9.97 | Q159: 746.56 | R159: 345.1614
A160: 9.3.3 | B160: DEA 7.3 B | C160: 470287-5 | D160: Cerâmica Pointer 80 x 80 cm, Tipo A, PEI 5, linha Infinita Bege ou equivalente, assentada com argamassa pré fabricada AC II, Quartzolit ou equivalente, inclusive rejunte Quartzolit ou equivalente. | E160: m² | F160: 408.9 | G160: 408.895 | H160: 0.005 | I160: 78.25 | J160: 91.58 | K160: 17.6 | L160: 21.73 | M160: 0 | N160: 0 | O160: 95.85 | P160: 113.31 | Q160: 39193.07 | R160: 46331.89245
A161: 9.3.4 | B161: DEA 7.14 B | C161: 428768-1 | D161: Rodapé de cerâmica Pointer 80 x 80 cm, Tipo A, PEI 5, linha Infinita Bege ou equivalente, com 7 cm de altura, assentado com argamassa colante industrializada AC-II, inclusive rejunte Quartzolit ou equivalente. | E161: m | F161: 359.13 | G161: 271.02 | H161: 88.11 | I161: 6.05 | J161: 7.08 | K161: 2.01 | L161: 2.48 | M161: 0 | N161: 0 | O161: 8.06 | P161: 9.56 | Q161: 2894.59 | R161: 2590.9512
A162: 9.3.5 | B162: DEA 101752 | C162: 567471-5 | D162: Fornecimento e assentamento de PISO EM GRANILITE CINZA CLARO. (Escada) | E162: m² | F162: 38.49 | G162: 26.375 | H162: 12.115 | I162: 22.22 | J162: 26 | K162: 14.07 | L162: 17.37 | M162: 0 | N162: 0 | O162: 36.29 | P162: 43.37 | Q162: 1396.8 | R162: 1143.88375
A163: 9.3.6 | B163: DEA 101752.01 | C163: 563913-1 | D163: Fornecimento e assentamento de RODAPÉ EM GRANILITE CINZA CLARO, altura 15cm. (Escada) | E163: m | F163: 45.32 | G163: 20.83 | H163: 24.49 | I163: 3.49 | J163: 4.08 | K163: 2.81 | L163: 3.47 | M163: 0 | N163: 0 | O163: 6.3 | P163: 7.55 | Q163: 285.52 | R163: 157.2665
A164: 9.4 | D164: OUTROS REVESTIMENTOS DE PISO INTERNO | G164: 0 | H164: 0 | I164: 0 | J164: 0 | K164: 0 | L164: 0 | M164: 0 | N164: 0 | O164: 0 | P164: 0 | Q164: 0 | R164: 0
A165: 9.4.1 | B165: DEA 8.19 | C165: 470478-9 | D165: Fornecimento e assentamento de piso tátil de alerta em inox escovado. Ref.: TAIC 3020, Mozaik, L=25cm. | E165: m² | F165: 1 | G165: 0 | H165: 1 | I165: 142.93 | J165: 167.27 | K165: 15.92 | L165: 19.65 | M165: 0 | N165: 0 | O165: 158.85 | P165: 186.92 | Q165: 158.85 | R165: 0
A166: 10 | D166: REVESTIMENTO DE TETO | G166: 0 | H166: 0 | I166: 0 | J166: 0 | K166: 0 | L166: 0 | M166: 0 | N166: 0 | O166: 0 | P166: 0 | Q166: 0 | R166: 0
A167: 10.1 | D167: FORRO REMOVIVEL | G167: 0 | H167: 0 | I167: 0 | J167: 0 | K167: 0 | L167: 0 | M167: 0 | N167: 0 | O167: 0 | P167: 0 | Q167: 0 | R167: 0
A168: 10.1.1 | B168: DEA 96114 | C168: 474409-8 | D168: Forro em drywall, para ambientes comerciais, inclusive estrutura de fixação. | E168: m² | F168: 582.98 | G168: 582.98 | H168: 0 | I168: 39.74 | J168: 46.51 | K168: 13.39 | L168: 16.53 | M168: 0 | N168: 0 | O168: 53.13 | P168: 63.04 | Q168: 30973.73 | R168: 36751.0592
A169: 10.2 | D169: CHAPISCO INTERNO EM TETO | G169: 0 | H169: 0 | I169: 0 | J169: 0 | K169: 0 | L169: 0 | M169: 0 | N169: 0 | O169: 0 | P169: 0 | Q169: 0 | R169: 0
A170: 10.2.1 | B170: DEA 87882 | C170: 457787-6 | D170: Chapisco aplicado no teto, com rolo para textura acrílica. argamassa traço 1:4 e emulsão polimérica (adesivo) com preparo em betoneira 400l. | E170: m² | F170: 83.838 | G170: 0 | H170: 83.838 | I170: 5.04 | J170: 5.9 | K170: 0.85 | L170: 1.05 | M170: 0 | N170: 0 | O170: 5.89 | P170: 6.95 | Q170: 493.81 | R170: 0
A171: 10.3 | D171: EMBOÇO / MASSA ÚNICA INTERNA EM TETO | G171: 0 | H171: 0 | I171: 0 | J171: 0 | K171: 0 | L171: 0 | M171: 0 | N171: 0 | O171: 0 | P171: 0 | Q171: 0 | R171: 0
A172: 10.3.1 | B172: DEA 90406 | C172: 464552-9 | D172: Massa única, para recebimento de pintura, em argamassa traço 1:2:8, preparo mecânico com betoneira 400l, aplicada manualmente em teto, espessura de 20mm, com execução de taliscas. | E172: m² | F172: 83.838 | G172: 0 | H172: 83.838 | I172: 20.82 | J172: 24.37 | K172: 20.87 | L172: 25.76 | M172: 0 | N172: 0 | O172: 41.69 | P172: 50.13 | Q172: 3495.21 | R172: 0
A173: 11 | D173: REVESTIMENTO DE FACHADA | G173: 0 | H173: 0 | I173: 0 | J173: 0 | K173: 0 | L173: 0 | M173: 0 | N173: 0 | O173: 0 | P173: 0 | Q173: 0 | R173: 0
A174: 11.1 | D174: CHAPISCO EXTERNO | G174: 0 | H174: 0 | I174: 0 | J174: 0 | K174: 0 | L174: 0 | M174: 0 | N174: 0 | O174: 0 | P174: 0 | Q174: 0 | R174: 0
A175: 11.1.1 | B175: DEA 87905 | C175: 433325-0 | D175: Chapisco aplicado em alvenaria (com presença de vãos) e estruturas de concreto de fachada, com colher de pedreiro. argamassa traço 1:3 com preparo em betoneira 400l. | E175: m² | F175: 1414.7627 | G175: 1204.0812 | H175: 210.6815 | I175: 2.79 | J175: 3.27 | K175: 4.64 | L175: 5.73 | M175: 0 | N175: 0 | O175: 7.43 | P175: 9 | Q175: 10511.69 | R175: 10836.7308
A176: 11.2 | D176: EMBOÇO / MASSA UNICA EXTERNO | G176: 0 | H176: 0 | I176: 0 | J176: 0 | K176: 0 | L176: 0 | M176: 0 | N176: 0 | O176: 0 | P176: 0 | Q176: 0 | R176: 0
A177: 11.2.1 | B177: DEA 87775 | C177: 432316-5 | D177: Emboço ou massa única em argamassa traço 1:2:8, preparo mecânico com betoneira 400 l, aplicada manualmente em panos de fachada com presença de vãos, espessura de 25 mm. | E177: m² | F177: 1414.7627 | G177: 1204.0812 | H177: 210.6815 | I177: 16.8 | J177: 19.66 | K177: 19.48 | L177: 24.05 | M177: 0 | N177: 0 | O177: 36.28 | P177: 43.71 | Q177: 51327.59 | R177: 52630.38925
A178: 11.3 | D178: FACHADA | G178: 0 | H178: 0 | I178: 0 | J178: 0 | K178: 0 | L178: 0 | M178: 0 | N178: 0 | O178: 0 | P178: 0 | Q178: 0 | R178: 0
A179: 11.3.1 | B179: DEA 9.17B | C179: 438778-3 | D179: Cerâmica 5x10cm Elizabeth ou equivalente, Branco Cristal, assentadas horizontalmente com argamassa colante AC III Quartzolit ou equivalente e rejuntadas com argamassa de rejuntamento flexível Quartzolit ou equivalente. | E179: m² | F179: 845.8272 | G179: 844.9955 | H179: 0.8317 | I179: 58.36 | J179: 68.3 | K179: 17.6 | L179: 21.73 | M179: 0 | N179: 0 | O179: 75.96 | P179: 90.03 | Q179: 64249.03 | R179: 76074.94486
A180: 11.3.2 | B180: DEA 9.24A | C180: 413119-3 | D180: MIX DE PASTILHAS de Porcelana Esmaltada 5 x 5 cm, nas cores Violeta Mariana (azul claro) Ref: GR 710 (25%), Azul Petrópolis Ref: GR 718 (25%) e Azul Maranhão REf: GR 702 (50%), NGK | E180: m² | F180: 185.2989 | G180: 141.618 | H180: 43.6809 | I180: 198.25 | J180: 232.01 | K180: 17.6 | L180: 21.73 | M180: 0 | N180: 0 | O180: 215.85 | P180: 253.74 | Q180: 39996.77 | R180: 35934.15132
A181: 11.3.3 | B181: DEA 9.48A | C181: 204286-0 | D181: AZULEJO OCEANIC WHITE CÓD. 62060108 DA LINHA INCEPA 20cmx20cm, junta mínima recomendada de 3mm ou equivalente técnico, assentado com argamassa colante AC III Quartzolit ou equivalente e rejuntado com argamassa de rejuntamento flexível Quartzolit ou equivalente. | E181: m² | F181: 33.462 | G181: 31.6906 | H181: 1.7714 | I181: 75.1 | J181: 87.89 | K181: 10.98 | L181: 13.55 | M181: 0 | N181: 0 | O181: 86.08 | P181: 101.44 | Q181: 2880.41 | R181: 3214.694464
A182: 11.3.4 | B182: DEA 9.49A | C182: 204286-0 | D182: AZULEJO OCEANIC LAKE BLUE CÓD. 62060102 DA LINHA PS INCEPA 20cmx20cm, junta mínima recomendada de 3mm ou equivalente técnico, assentado com argamassa colante AC III Quartzolit ou equivalente e rejuntado com argamassa de rejuntamento flexível Quartzolit ou equivalente. | E182: m² | F182: 33.462 | G182: 31.6906 | H182: 1.7714 | I182: 75.1 | J182: 87.89 | K182: 10.98 | L182: 13.55 | M182: 0 | N182: 0 | O182: 86.08 | P182: 101.44 | Q182: 2880.41 | R182: 3214.694464
A183: 11.4 | D183: JUNTA DE MOVIMENTAÇÃO NA FACHADA | G183: 0 | H183: 0 | I183: 0 | J183: 0 | K183: 0 | L183: 0 | M183: 0 | N183: 0 | O183: 0 | P183: 0 | Q183: 0 | R183: 0
A184: 11.4.1 | B184: DEA 9.14 | C184: 402066-9 | D184: Fornecimento e aplicação de junta de mastique, inclusive preenchimento da junta com tarucel 20mm. | E184: m | F184: 194.4 | G184: 115.68 | H184: 78.72 | I184: 34.49 | J184: 40.36 | K184: 5.86 | L184: 7.23 | M184: 0 | N184: 0 | O184: 40.35 | P184: 47.59 | Q184: 7844.04 | R184: 5505.2112
A185: 12 | D185: IMPERMEABILIZAÇÃO | G185: 0 | H185: 0 | I185: 0 | J185: 0 | K185: 0 | L185: 0 | M185: 0 | N185: 0 | O185: 0 | P185: 0 | Q185: 0 | R185: 0
A186: 12.1 | D186: IMPERMEABILIZACAO DA COBERTA | G186: 0 | H186: 0 | I186: 0 | J186: 0 | K186: 0 | L186: 0 | M186: 0 | N186: 0 | O186: 0 | P186: 0 | Q186: 0 | R186: 0
A187: 12.1.1 | B187: DEA 7.7 | C187: 564313-9 | D187: Regularização de piso. | E187: m² | F187: 117.6525 | G187: 117.65 | H187: 0.0025 | I187: 2.75 | J187: 3.22 | K187: 7.53 | L187: 9.3 | M187: 0 | N187: 0 | O187: 10.28 | P187: 12.52 | Q187: 1209.47 | R187: 1472.978
A188: 12.1.2 | B188: DEA 98546.01 | C188: 407119-0 | D188: Impermeabilização de superfície com manta asfáltica em poliester aluminizado, uma camada, inclusive aplicação de primer asfáltico, e=3mm. | E188: m² | F188: 354.0195 | G188: 314.3863 | H188: 39.6332 | I188: 51.54 | J188: 60.32 | K188: 16.66 | L188: 20.57 | M188: 0 | N188: 0 | O188: 68.2 | P188: 80.89 | Q188: 24144.13 | R188: 25430.70781
A189: 12.2 | D189: IMPERMEABILIZACAO DE ÁREA MOLHADA INTERNA (BWC´S SUPERIORES) | G189: 0 | H189: 0 | I189: 0 | J189: 0 | K189: 0 | L189: 0 | M189: 0 | N189: 0 | O189: 0 | P189: 0 | Q189: 0 | R189: 0
A190: 12.2.1 | B190: DEA 7.7 | C190: 564313-9 | D190: Regularização de piso. | E190: m² | F190: 19.34 | G190: 0 | H190: 19.34 | I190: 2.75 | J190: 3.22 | K190: 7.53 | L190: 9.3 | M190: 0 | N190: 0 | O190: 10.28 | P190: 12.52 | Q190: 198.82 | R190: 0
A191: 12.2.2 | B191: DEA 98555 | C191: 478520-7 | D191: Impermeabilização de superfície com impermeabilizante semi-flexivel (mai), 3 demãos. | E191: m² | F191: 31.898 | G191: 26.596 | H191: 5.302 | I191: 14.1 | J191: 16.5 | K191: 10.67 | L191: 13.17 | M191: 0 | N191: 0 | O191: 24.77 | P191: 29.67 | Q191: 790.11 | R191: 789.10332
A192: 12.3 | D192: IMPERMEABILIZACAO DE POCO DE ELEVADOR | G192: 0 | H192: 0 | I192: 0 | J192: 0 | K192: 0 | L192: 0 | M192: 0 | N192: 0 | O192: 0 | P192: 0 | Q192: 0 | R192: 0
A193: 12.3.1 | B193: DEA 7.7 | C193: 564313-9 | D193: Regularização de piso. | E193: m² | F193: 12.28 | G193: 12.28 | H193: 0 | I193: 2.75 | J193: 3.22 | K193: 7.53 | L193: 9.3 | M193: 0 | N193: 0 | O193: 10.28 | P193: 12.52 | Q193: 126.24 | R193: 153.7456
A194: 12.3.2 | B194: DEA 98555 | C194: 478520-7 | D194: Impermeabilização de superfície com impermeabilizante semi-flexivel (mai), 3 demãos. | E194: m² | F194: 12.28 | G194: 12.28 | H194: 0 | I194: 14.1 | J194: 16.5 | K194: 10.67 | L194: 13.17 | M194: 0 | N194: 0 | O194: 24.77 | P194: 29.67 | Q194: 304.18 | R194: 364.3476
A195: 12.4 | D195: IMPERMEABILIZACAO DOS RESERVATORIOS INFERIOR E SUPERIOR | G195: 0 | H195: 0 | I195: 0 | J195: 0 | K195: 0 | L195: 0 | M195: 0 | N195: 0 | O195: 0 | P195: 0 | Q195: 0 | R195: 0
A196: 12.4.1 | B196: DEA 7.7 | C196: 564313-9 | D196: Regularização de piso. | E196: m² | F196: 205.605 | G196: 44.02 | H196: 161.585 | I196: 2.75 | J196: 3.22 | K196: 7.53 | L196: 9.3 | M196: 0 | N196: 0 | O196: 10.28 | P196: 12.52 | Q196: 2113.62 | R196: 551.1304
A197: 12.4.2 | B197: DEA 98555 | C197: 460739-2 | D197: Impermeabilização de superfície com impermeabilizante semi-flexivel, 3 demãos, reforçado com véu de poliéster (mav). | E197: m² | F197: 205.605 | G197: 44.02 | H197: 161.585 | I197: 14.1 | J197: 16.5 | K197: 10.67 | L197: 13.17 | M197: 0 | N197: 0 | O197: 24.77 | P197: 29.67 | Q197: 5092.84 | R197: 1306.0734
A198: 13 | D198: PINTURA | G198: 0 | H198: 0 | I198: 0 | J198: 0 | K198: 0 | L198: 0 | M198: 0 | N198: 0 | O198: 0 | P198: 0 | Q198: 0 | R198: 0
A199: 13.1 | D199: PINTURA DE PAREDE INTERNA | G199: 0 | H199: 0 | I199: 0 | J199: 0 | K199: 0 | L199: 0 | M199: 0 | N199: 0 | O199: 0 | P199: 0 | Q199: 0 | R199: 0
A200: 13.1.1 | B200: DEA 88485 | C200: 432003-4 | D200: Aplicação de fundo selador acrílico em paredes, uma demão. | E200: m² | F200: 1486.0236 | G200: 1415.80173 | H200: 70.22187 | I200: 1.49 | J200: 1.74 | K200: 0.83 | L200: 1.02 | M200: 0 | N200: 0 | O200: 2.32 | P200: 2.76 | Q200: 3447.57 | R200: 3907.612775
... 715 more rows
